Cogmind - Beta 10.2 @@@ ROGUE MODE // 2022.03.17 @ 12:55:25 Player: ILikeMonsters1890 Result: Destroyed by Y-45 Defender with Beam Rifle Performance ------------- Evolutions (1) 500 Regions Visited (2) 400 Robots Destroyed (19) 95 Value Destroyed (511) 511 Prototype IDs (5) 100 Alien Tech Used (0) 0 Bonus (0) 0 TOTAL SCORE: 1606 Bonus ------- None Cogmind --------- Core Integrity 0/400 Matter 300/300 Energy 100/100 System Corruption 0% Temperature Cool (9) Movement Walking (120) Location -9/Materials Parts ------- > --- POWER (2) -------- (None) > --- PROPULSION (3) --- Aluminum Leg Aluminum Leg > --- UTILITY (2) ------ Large Storage Unit Visual Processing Unit > --- WEAPON (2) ------- (None) > --- INVENTORY (10) --- Wheel Wheel Faulty Improved Flight Unit Heat Sink Peak State ------------ > --- POWER ------------ Ion Engine > --- PROPULSION ------- Wheel Wheel > --- UTILITY ---------- Large Storage Unit Signal Interpreter > --- WEAPON ----------- Particle Gun EMP Blaster > --- INVENTORY -------- Light Ion Engine Aluminum Leg Aluminum Leg Aluminum Leg Heat Sink Medium Matter Pod Particle Gun EMP Blaster [Rating: 10] Favorites ----------- Power Light Ion Engine Engine Light Ion Engine Propulsion Aluminum Leg Leg Aluminum Leg Wheel Wheel Utility Large Storage Unit Device Heat Sink Storage Large Storage Unit Processor Visual Processing Unit Weapon EMP Blaster Energy Gun Small Laser Ballistic Gun Light Assault Rifle Launcher EMP Blaster Build | -11 -10 -9 ------- Run | Scr Mat Mat Slots Evolved 2 | . . 2 Power 1 | . . 1 Propulsion 1 | . . 1 Utility . | . . . Weapon . | . . . Parts Attached 32 | 6 14 12 Power 3 | 1 1 1 Engine 3 | 1 1 1 Core . | . . . Reactor . | . . . Propulsion 11 | 2 3 6 Treads . | . . . Leg 9 | . 3 6 Wheel 2 | 2 . . Hover . | . . . Flight . | . . . Utility 6 | 1 4 1 Device 2 | . 2 . Storage 2 | 1 1 . Processor 2 | . 1 1 Hackware . | . . . Protection . | . . . Artifact . | . . . Weapon 12 | 2 6 4 Energy Gun 7 | 2 2 3 Energy Cannon . | . . . Ballistic Gun 2 | . 1 1 Ballistic Cannon . | . . . Launcher 3 | . 3 . Special Weapon . | . . . Impact Weapon . | . . . Slashing Weapon . | . . . Piercing Weapon . | . . . Special Melee Weapon . | . . . Unidentified Prototypes . | . . . Parts Lost 20 | . 7 13 Power 3 | . 1 2 Propulsion 8 | . 2 6 Utility 1 | . 1 . Weapon 8 | . 3 5 Highest Loss Streak 7 | . 7 5 Average Slot Usage (%) 84 | . 92 77 Engine 11 | . 13 9 Leg 18 | . 4 29 Wheel 9 | . 21 . Device 1 | . 3 . Storage 12 | . 14 11 Processor 8 | . 7 10 Energy Gun 9 | . 12 7 Ballistic Gun 3 | . 2 4 Launcher 7 | . 11 4 Naked Turns . | . . . Heaviest Build 29 | 13 29 26 Greatest Support 30 | 20 20 30 Greatest Overweight (x) 5 | . 5 5 Average Overweight (x) . | . . . Largest Inventory Capacity 10 | 6 10 10 Average Capacity 9 | 4 9 10 Most Carried 8 | 4 8 8 Average Carried 5 | 2 5 5 Final Capacity 10 | 6 10 10 Final Carried 5 | 4 5 4 Class Distribution -------------------- 95% | Mutant 4% | Scavenger-Mutant Dominant Class ---------------- Mutant | -10/Materials Mutant | -9/Materials Resources | -11 -10 -9 ----------- Run | Scr Mat Mat Matter Collected 588 | 184 179 225 Remotely . | . . . Salvage Created 731 | . 253 478 Parts 41 | . 13 28 Haulers Intercepted 1 | . . 1 Recyclers Shooed . | . . . Parts Field Recycled . | . . . Retrieved Matter . | . . . Parts Self-Destructed . | . . . Prevented . | . . . Kills | -11 -10 -9 ------- Run | Scr Mat Mat Combat Hostiles Destroyed 15 | . 7 8 Melee 2 | . . 2 Guns 9 | . 6 3 AOE 4 | . 1 3 Classes Destroyed 6 | . 3 3 Worker 1 | . . 1 Hauler 1 | . . 1 Watcher 2 | . 2 . Swarmer 3 | . 3 . Grunt 11 | . 4 7 Brawler 1 | . . 1 Best Kill Streak 5 | . 5 4 Combat Bots Only 5 | . 5 3 Max Kills in Single Turn 2 | . 1 2 Gunslinging . | . . . Exploded 1 | . 1 1 Melee 1 | . . 1 Uniques/NPCs Destroyed . | . . . Combat | -11 -10 -9 -------- Run | Scr Mat Mat Damage Taken 1994 | . 637 1357 Core 596 | . 193 403 Absorbed by Shields . | . . . Core Remaining (%) 61 | 100 22 . Volleys Fired 75 | . 42 33 Largest 2 | . 2 2 Hottest 90 | . 90 73 Shots Fired 100 | . 51 49 Gun 86 | . 44 42 Cannon . | . . . Launcher 14 | . 7 7 Special . | . . . Kinetic 22 | . 6 16 Thermal 58 | . 32 26 Explosive . | . . . Electromagnetic 20 | . 13 7 Robot Hit Streak 14 | . 6 14 Robot Miss Streak 2 | . 2 2 Penetration Max . | . . . Secondary Targets 1 | . . 1 Max Gunslinging Chain 1 | . . 1 Shots Hit Robots 74 | . 38 36 Core Hits 40 | . 12 28 Critical Hits . | . . . Critical Kills . | . . . Critical Parts Destroyed . | . . . Melee Attacks . | . . . Impact . | . . . Slashing . | . . . Piercing . | . . . Sneak Attacks . | . . . Combat Hostiles . | . . . Follow-up Attacks . | . . . Damage Inflicted 1260 | . 602 658 Guns 852 | . 507 345 Cannons . | . . . Explosions 365 | . 94 271 Melee . | . . . Ramming 43 | . 1 42 Kinetic 145 | . 36 109 Thermal 645 | . 409 236 Explosive . | . . . Electromagnetic 427 | . 156 271 Impact . | . . . Slashing . | . . . Piercing . | . . . Highest Corruption . | . . . Average Corruption . | . . . Corruption Purged . | . . . Overload Shots . | . . . Overflow Damage 7 | . 7 . Projectiles . | . . . Explosions 7 | . 7 . Melee . | . . . Knockbacks 1 | . . 1 Impact 1 | . . 1 Kinetic . | . . . Secondary . | . . . Self-Inflicted Damage 7 | . . 7 Shots 1 | . . 1 Rammed 13 | . 3 10 Targets Rammed 27 | . 3 24 Kicked 14 | . . 14 Crushed . | . . . Highest Temperature 698 | . 698 51 Average Temperature 182 | . 271 20 Received Heat Transfer 960 | . 279 681 Effects 22 | . 22 . Shutdowns 3 | . 3 . Energy Bleed 3 | . 3 . Interference 3 | . 3 . Matter Decay 2 | . 2 . Short Circuit 1 | . 1 . Damage (minor) 2 | . 2 . Damage (major) 6 | . 6 . Damage (core) 2 | . 2 . Siege Activations . | . . . Robots Corrupted . | . . . Combat Hostiles . | . . . Parts Fried 2 | . 1 1 Impact Corruptions . | . . . Robots Melted . | . . . Combat Hostiles . | . . . Parts Melted 2 | . 1 1 Heat Transferred 1549 | . 999 550 Parts Sabotaged . | . . . Parts Stolen . | . . . Parts Stripped . | . . . Power Chain Reactions 1 | . . 1 Missiles Intercepted . | . . . Alert | -11 -10 -9 ------- Run | Scr Mat Mat Peak Influence 158 | . 146 158 Initial 31 | . . 31 Average 58 | . 58 62 Maximum Alert Level . | . . . Low Security (%) 100 | 100 100 100 Level 1 . | . . . Level 2 . | . . . Level 3 . | . . . Level 4 . | . . . Level 5 . | . . . High Security . | . . . Max Security . | . . . Squads Dispatched 2 | . . 2 Investigation 1 | . . 1 Extermination . | . . . Reinforcement 1 | . . 1 Assault . | . . . Garrison . | . . . Intercept . | . . . Construction Impeded 1 | . . 1 Haulers Reinforced . | . . . Stealth | -11 -10 -9 --------- Run | Scr Mat Mat Distress Signals 2 | . 2 . Communications Jammed . | . . . Distress Signals . | . . . Times Spotted 27 | . 13 14 Peak Tracking Total 8 | . 8 4 Tactical Retreats 5 | . 3 2 Traps | -11 -10 -9 ------- Run | Scr Mat Mat Traps Triggered . | . . . Indirectly . | . . . Trap Hack Attempts . | . . . Triggered . | . . . Disarmed . | . . . Reprogrammed . | . . . Reused . | . . . Traps Extracted . | . . . Installed . | . . . Triggered . | . . . Machines | -11 -10 -9 ---------- Run | Scr Mat Mat Machines Disabled 1 | . 1 . Max in Single Turn 1 | . 1 . Machines Sabotaged . | . . . Garrisons Compromised . | . . . Overloaded Fab Kills . | . . . Fab Network Shutdowns . | . . . Hacking | -11 -10 -9 --------- Run | Scr Mat Mat Machines Accessed 8 | . 6 2 Terminals 7 | . 6 1 Fabricators . | . . . Repair Stations . | . . . Recycling Units . | . . . Scanalyzers 1 | . . 1 Garrison Access . | . . . Total Hacks 23 | . 19 4 Successful 10 | . 10 . Failed 13 | . 9 4 Catastrophic 2 | . 1 1 Database Lockouts . | . . . Manual 1 | . 1 . Terminals 22 | . 19 3 Fabricators . | . . . Repair Stations . | . . . Recycling Units . | . . . Scanalyzers 1 | . . 1 Garrison Access . | . . . Terminal Hacks 10 | . 10 . Record 4 | . 4 . Prototype ID Bank 3 | . 3 . Branch Access Points 1 | . 1 . Reinforcement Status 1 | . 1 . Zone Layout 1 | . 1 . Fabricator Hacks . | . . . Repair Station Hacks . | . . . Recycling Unit Hacks . | . . . Scanalyzer . | . . . Garrison Access Hacks . | . . . Unauthorized Hacks . | . . . Terminals . | . . . Fabricators . | . . . Repair Stations . | . . . Recycling Units . | . . . Scanalyzers . | . . . Garrison Access . | . . . Data Cores Recovered . | . . . Used . | . . . Hacking Detections 7 | . 6 1 Full Trace Events 1 | . . 1 Feedback Events . | . . . Feedback Blocked . | . . . Robot Schematics Acquired . | . . . Robots Built . | . . . Matter . | . . . Time . | . . . Total Robot Build Rating . | . . . Part Schematics Acquired . | . . . Parts Built . | . . . Matter . | . . . Time . | . . . Total Part Build Rating . | . . . Parts Repaired . | . . . Time . | . . . Parts Recycled . | . . . Recycled Matter . | . . . Retrieved Matter . | . . . Retrieved Components . | . . . Parts Scanalyzed . | . . . Part Schematics Acquired . | . . . Parts Damaged . | . . . Bothacking | -11 -10 -9 ------------ Run | Scr Mat Mat Used RIF Installer . | . . . Robots Hacked . | . . . Non-combat . | . . . Combat . | . . . Robot Hacks Applied . | . . . Relay Couplers Released . | . . . Robots Rewired . | . . . Allies Hacked . | . . . Hacks Repelled . | . . . Allies | -11 -10 -9 -------- Run | Scr Mat Mat Total Allies . | . . . Largest Group . | . . . Highest-Rated Group . | . . . Highest-Rated Ally . | . . . Total Orders . | . . . Ally Attacks . | . . . Total Damage . | . . . Kills . | . . . Allies Corrupted . | . . . Allies Melted . | . . . Intel | -11 -10 -9 ------- Run | Scr Mat Mat Robot Analysis Total . | . . . Derelict Logs Recovered . | . . . Drone Launches . | . . . Drone Recoveries . | . . . Exploration | -11 -10 -9 ------------- Run | Scr Mat Mat Turns Passed 1314 | 62 567 685 Spaces Moved 817 | 61 387 369 Core 14 | 7 4 3 Treads . | . . . Legs 409 | . 43 366 Wheels 394 | 54 340 . Hover . | . . . Flight . | . . . Fastest Speed 50 | 50 80 120 Average Speed 106 | 76 97 121 Slowest Speed 300 | 80 300 300 Overloaded Moves . | . . . Propulsion Burnouts . | . . . Robots Hopped . | . . . Cave-ins Triggered . | . . . Exploration Rate (%) 24 | 4 46 23 Regions Visited 2 Branch Regions . Pre-discovered Areas . | . . . Known Exits Taken 1 | . 1 . Unknown Exits Taken 1 | 1 . . Scrap Searched . | . . . Spaces Dug . | . . . Terrain Destroyed 3 | . . 3 Melee . | . . . Projectile . | . . . AOE 3 | . . 3 Terrain Rammed . | . . . Walls Destroyed . | . . . Machines Disabled . | . . . Actions | -11 -10 -9 --------- Run | Scr Mat Mat Total 1144 | 76 523 545 Wait 145 | . 49 96 Move 815 | 60 386 369 Hop . | . . . Pick Up 40 | 10 20 10 Fast Attach . | . . . Attach 26 | 6 10 10 Detach . | . . . Swap 6 | . 4 2 Drop 10 | . 9 1 Fire 75 | . 42 33 Melee . | . . . Ram 7 | . 3 4 Kick 20 | . . 20 Crush . | . . . Escape Stasis . | . . . Rewire . | . . . Trap . | . . . Miscellaneous . | . . . Route ------- -11/Scrapyard -10/Materials (discovered 2 exits: *Mat / *Min) -9/Materials History --------- Turn | Location | Event 12 | -11/Scrapyard | Discovered new exit (range 16) 63 | -11/Scrapyard | Entered Materials 200 | -10/Materials | Discovered new exit (range 16) 228 | -10/Materials | Identified exit to Mines 314 | -10/Materials | Build established: Mutant 388 | -10/Materials | Discovered new exit (range 15) 408 | -10/Materials | Identified exit to Materials 500 | -10/Materials | Core integrity fell below 50% 562 | -10/Materials | Lost 7 parts (1p2n1u3w) 630 | -10/Materials | Entered another Materials area 630 | -9/Materials | Evolved 2 slots: Power x1, Propulsion x1 1182 | -9/Materials | Lost 5 parts (2p1n2w) 1258 | -9/Materials | Core integrity fell below 50% 1272 | -9/Materials | Core integrity fell below 20% 1280 | -9/Materials | Lost 3 parts (3n) 1315 | -9/Materials | Destroyed by Y-45 Defender with Beam Rifle Last Messages --------------- 01278_ Kicked G-34 Mercenary out of the way. 01281_ Slammed into G-34 Mercenary. 01283_ Kicked G-34 Mercenary out of the way. 01284_ Slammed into G-34 Mercenary. 01285_ Kicked G-34 Mercenary out of the way. 01286_ Acquired 2 matter. 01286_ Kicked G-34 Mercenary out of the way. 01287_ Slammed into G-34 Mercenary. 01289_ Kicked G-34 Mercenary out of the way. 01290_ R-06 Scavenger collects Particle Gun. 01291_ Kicked G-34 Mercenary out of the way. 01291_ G-34 Mercenary destroyed. 01293_ R-06 Scavenger collects Ion Engine. 01295_ Acquired Sml. Laser. 01296_ R-06 Scavenger collects Heat Sink. 01301_ Aluminum Leg destroyed. 01301_ R-06 Scavenger collects Imp. Heat Sink. 01312_ Y-45 Defender heat damages Lgt. Treads. 01313_ Y-45 Defender heat short circuits Hvy. Assault Rifle. 01313_ Sml. Laser destroyed. Map ----- +----------------------------------------------------+ | ??????????????????????????????????????????????? | | ??????????????????????????????????????????????? | | ??????????????????????????????????????????????? | | ??????????????????????????????????????????????? | | ??????????????????????????????????????????????? | | ??????????? ????????????????????????????????? | | ?????????# ?????????##?????????????????????? | | ?????????? ????????? ?????????????????????? | | ?????????? ????????? ?????????????????????? | | ?????????? ????????? ?????????????????????? | | ?????????? ????????? ?????????????????????? | | ??????????# #???????? ?????????????????????? | | ??????????# #???????? ##########???????????? | | ??????????# #????????# # #???????????? | | ??????????# #????????# # #????????? ? | | ??????????# #????????# # #????????? # | | ??????????# #????????# # #???????? ? | | ??????????# #????????# # #???????? ? | | ??????????# #????????# # #??????? ?? | | ??????????# #????????# # #???????"T"?? | | ??????????# ########## # #?????? ""??? | | ??????????# *= # #???###+##### | | ??????????# #######+##/#####+######## | | ??????##### #???# %%%Y # % | | ??????# #???# %%% # | | ??????# #???# *@%% # | | ??????# #???# % # | | ??????##### #?############# ######## | | ??????????# #?# #??# #??????# | | ??????????# #?# #??# #??????# | | ??????????# #?# #??# #??????# | | ??????????# #?# #??# #??????# | | ?########## #?# """ #??# #??????# | | ?# # #?# """"" #??# #??????# | | ?#""" """ # #?# """"" #??# #??????# " " | | ?#""" """ # #?# """"" #??# #??????# "R" | | ?#"S """ # #?# """ #?## ##?????# """ | | ?#""" + ##########/### #?????+ | | ?# "" """ # #?????# | | ?# """ # #?????# #### | | ?# """ # #?????+ #??? | | ?# ################## #?????##/##??? | | ?##########????????????????## ##?????? ???? | | ????????????????????????????# ##?????? ???? | | ????????????????????????????# ##?????""" ???? | | ?????????????????????######## % ##### """""???? | | ?????????????????????# % / """"????? | | ?????????????????????# ##### """"????? | | ?????????????????????# #?????????????? | | ???????????????????####+###### #?????????????? | +----------------------------------------------------+ Best States ------------- Heat Dissipation 38 Energy Generation 15 Energy Capacity 275 Matter Stores 300 Matter Capacity 300 Sight Range 18 Terrain Scan Density 10 Evasion (%) 44 Item Schematics ----------------- None Robot Schematics ------------------ None Fabricated ------------ Nothing Alien Tech Used ----------------- None Achievements -------------- None Challenges ------------ None Game ------ Seed QuantumComponentBooster Manual? 0 Play Time 00:20:54 Cumulative 20.5 hours Start 2022.03.17 @ 12:34:06 End 2022.03.17 @ 12:55:25 Sessions 1 Manual Loads 0 Difficulty Rogue Special Mode None Game No. 27 Rogue 27 Adventurer 0 Explorer 0 Win Type - Total 0 Types 0/0/0/0/0/0/0/0/0 Lore% 28 Gallery% 20 Achievement% 18 Wizard Run 0 Options --------- ASCII 0 Keyboard 0 Movement Numpad Keybinds 0 Fullscreen 2 Font 18/SmallcapsGlow Map View 76x50 Tactical HUD 1 Map Filters NONE Filters NONE Steam 1 RUN: 81002b9a-4e80-4648-8004-7a5658ebd0b2